[Event "Titled Tuesday Blitz August 15 Late 2023"]
[White "Tomb, Maroun"]
[Black "Curtis, John"]
[WhiteFideId "5300398"]
[BlackFideId "3200256"]
[WhiteElo "2491"]
[BlackElo "2082"]
[Result "1-0"]
[Round "7"]
[TimeControl "180+1"]
[Date "2023.08.15"]
[WhiteClock "0:00:02"]
[BlackClock "0:00:00"]
[Board "88"]

1. e4 {[%clk 0:03:00]}  d5 {[%clk 0:02:59]} 2. exd5 {[%clk 0:03:00]}  Nf6 {[%clk 0:02:57]} 3. c4 {[%clk 0:02:58]}  c6 {[%clk 0:02:57]} 4. d4 {[%clk 0:02:58]}  cxd5 {[%clk 0:02:57]} 5. Nc3 {[%clk 0:02:59]}  Nc6 {[%clk 0:02:57]} 6. cxd5 {[%clk 0:02:57]}  Nxd5 {[%clk 0:02:56]} 7. Nf3 {[%clk 0:02:56]}  e6 {[%clk 0:02:54]} 8. Bc4 {[%clk 0:02:55]}  Nb6 {[%clk 0:02:53]} 9. Bb3 {[%clk 0:02:53]}  Be7 {[%clk 0:02:47]} 10. O-O {[%clk 0:02:53]}  O-O {[%clk 0:02:47]} 11. a4 {[%clk 0:02:47]}  Bf6 {[%clk 0:02:40]} 12. Be3 {[%clk 0:02:41]}  Na5 {[%clk 0:02:30]} 13. Bc2 {[%clk 0:02:30]}  Bd7 {[%clk 0:02:22]} 14. b3 {[%clk 0:02:13]}  Rc8 {[%clk 0:02:21]} 15. Ne4 {[%clk 0:02:12]}  Be7 {[%clk 0:02:11]} 16. Qd3 {[%clk 0:02:08]}  g6 {[%clk 0:02:00]} 17. Bh6 {[%clk 0:02:02]}  Re8 {[%clk 0:01:56]} 18. Ne5 {[%clk 0:02:00]}  Nc6 {[%clk 0:01:47]} 19. Nxc6 {[%clk 0:01:03]}  Bxc6 {[%clk 0:01:28]} 20. Rad1 {[%clk 0:00:54]}  Nd5 {[%clk 0:01:11]} 21. Bb1 {[%clk 0:00:52]}  Nb4 {[%clk 0:00:58]} 22. Qe3 {[%clk 0:00:43]}  Qd5 {[%clk 0:00:50]} 23. Qg3 {[%clk 0:00:38]}  Qh5 {[%clk 0:00:38]} 24. Bf4 {[%clk 0:00:28]}  Bxe4 {[%clk 0:00:32]} 25. Bxe4 {[%clk 0:00:28]}  Nd5 {[%clk 0:00:31]} 26. Be5 {[%clk 0:00:23]}  Qg5 {[%clk 0:00:20]} 27. Qf3 {[%clk 0:00:18]}  Bf8 {[%clk 0:00:11]} 28. g3 {[%clk 0:00:14]}  Qd8 {[%clk 0:00:11]} 29. h4 {[%clk 0:00:14]}  Bg7 {[%clk 0:00:10]} 30. Bxg7 {[%clk 0:00:13]}  Kxg7 {[%clk 0:00:11]} 31. Rfe1 {[%clk 0:00:12]}  Rc3 {[%clk 0:00:08]} 32. Rd3 {[%clk 0:00:09]}  Rxd3 {[%clk 0:00:07]} 33. Bxd3 {[%clk 0:00:10]}  b6 {[%clk 0:00:07]} 34. Bc4 {[%clk 0:00:10]}  Nf6 {[%clk 0:00:07]} 35. Rd1 {[%clk 0:00:07]}  Qb8 {[%clk 0:00:07]} 36. d5 {[%clk 0:00:06]}  exd5 {[%clk 0:00:07]} 37. Bxd5 {[%clk 0:00:07]}  Nxd5 {[%clk 0:00:05]} 38. Rxd5 {[%clk 0:00:06]}  Qc7 {[%clk 0:00:04]} 39. Kg2 {[%clk 0:00:06]}  Re6 {[%clk 0:00:03]} 40. h5 {[%clk 0:00:06]}  Qc6 {[%clk 0:00:01]} 41. g4 {[%clk 0:00:02]}  Rf6 {[%clk 0:00:00]} 42. h6+ {[%clk 0:00:02]} 1-0


[Site "https://www.chess.com"]

[Event "Titled Tuesday Blitz August 15 Late 2023"]
[White "GaiozNigalidze"]
[Black "Pesotskiy, Mikhail"]
[BlackFideId "34164453"]
[WhiteElo "2700"]
[BlackElo "2429"]
[Result "1-0"]
[Round "7"]
[TimeControl "180+1"]
[Date "2023.08.15"]
[WhiteClock "0:00:18"]
[BlackClock "0:00:03"]
[Board "89"]

1. Nc3 {[%clk 0:03:00]}  e6 {[%clk 0:02:53]} 2. d4 {[%clk 0:02:59]}  d5 {[%clk 0:02:52]} 3. g3 {[%clk 0:02:59]}  Nf6 {[%clk 0:02:51]} 4. Bg2 {[%clk 0:02:59]}  c5 {[%clk 0:02:52]} 5. Nf3 {[%clk 0:02:58]}  Nc6 {[%clk 0:02:52]} 6. dxc5 {[%clk 0:02:57]}  Bxc5 {[%clk 0:02:51]} 7. O-O {[%clk 0:02:57]}  O-O {[%clk 0:02:51]} 8. a3 {[%clk 0:02:58]}  b6 {[%clk 0:02:39]} 9. b4 {[%clk 0:02:57]}  Be7 {[%clk 0:02:39]} 10. Bb2 {[%clk 0:02:58]}  Bb7 {[%clk 0:02:39]} 11. Nb5 {[%clk 0:02:53]}  Rc8 {[%clk 0:02:35]} 12. Rc1 {[%clk 0:02:52]}  Qd7 {[%clk 0:02:28]} 13. Nbd4 {[%clk 0:02:38]}  Rfd8 {[%clk 0:02:15]} 14. Nxc6 {[%clk 0:02:32]}  Qxc6 {[%clk 0:02:16]} 15. Ne5 {[%clk 0:02:28]}  Qc7 {[%clk 0:02:04]} 16. Qd4 {[%clk 0:02:28]}  Bf8 {[%clk 0:01:35]} 17. Rfd1 {[%clk 0:02:23]}  Ne4 {[%clk 0:01:23]} 18. Ng4 {[%clk 0:01:41]}  f6 {[%clk 0:01:00]} 19. f4 {[%clk 0:00:53]}  Nc3 {[%clk 0:00:53]} 20. Re1 {[%clk 0:00:53]}  h5 {[%clk 0:00:13]} 21. Ne3 {[%clk 0:00:47]}  e5 {[%clk 0:00:13]} 22. fxe5 {[%clk 0:00:45]}  fxe5 {[%clk 0:00:14]} 23. Qh4 {[%clk 0:00:40]}  d4 {[%clk 0:00:14]} 24. Bxb7 {[%clk 0:00:35]}  Qxb7 {[%clk 0:00:13]} 25. Nf5 {[%clk 0:00:34]}  Qf7 {[%clk 0:00:09]} 26. Qg5 {[%clk 0:00:35]}  g6 {[%clk 0:00:06]} 27. Bxc3 {[%clk 0:00:28]}  Qxf5 {[%clk 0:00:02]} 28. Qxf5 {[%clk 0:00:25]}  gxf5 {[%clk 0:00:03]} 29. Bd2 {[%clk 0:00:26]}  Kg7 {[%clk 0:00:03]} 30. Kf2 {[%clk 0:00:24]}  Rc4 {[%clk 0:00:02]} 31. c3 {[%clk 0:00:23]}  Kg6 {[%clk 0:00:01]} 32. cxd4 {[%clk 0:00:22]}  Rdxd4 {[%clk 0:00:02]} 33. Be3 {[%clk 0:00:20]}  Re4 {[%clk 0:00:02]} 34. Rxc4 {[%clk 0:00:18]}  Rxc4 {[%clk 0:00:03]} 35. Rd1 {[%clk 0:00:19]}  f4 {[%clk 0:00:04]} 36. gxf4 {[%clk 0:00:19]}  exf4 {[%clk 0:00:05]} 37. Bd4 {[%clk 0:00:19]}  Kf5 {[%clk 0:00:04]} 38. Rd2 {[%clk 0:00:19]}  a5 {[%clk 0:00:04]} 39. bxa5 {[%clk 0:00:19]}  Rxd4 {[%clk 0:00:05]} 40. Rxd4 {[%clk 0:00:18]}  Bc5 {[%clk 0:00:05]} 41. e3 {[%clk 0:00:18]}  fxe3+ {[%clk 0:00:06]} 42. Ke2 {[%clk 0:00:18]}  bxa5 {[%clk 0:00:03]} 43. Rd5+ {[%clk 0:00:18]} 1-0


[Site "https://www.chess.com"]

[Event "Titled Tuesday Blitz August 15 Late 2023"]
[White "financieru"]
[Black "Gubajdullin, Alexei"]
[BlackFideId "4141202"]
[WhiteElo "2415"]
[BlackElo "2678"]
[Result "0-1"]
[Round "7"]
[TimeControl "180+1"]
[Date "2023.08.15"]
[WhiteClock "0:00:25"]
[BlackClock "0:01:36"]
[Board "90"]

1. d4 {[%clk 0:03:00]}  g6 {[%clk 0:02:59]} 2. c4 {[%clk 0:03:00]}  Bg7 {[%clk 0:02:59]} 3. Nc3 {[%clk 0:03:01]}  d6 {[%clk 0:02:59]} 4. e4 {[%clk 0:03:01]}  Nf6 {[%clk 0:02:59]} 5. f3 {[%clk 0:03:00]}  O-O {[%clk 0:02:59]} 6. Be3 {[%clk 0:03:01]}  Nc6 {[%clk 0:02:59]} 7. Nge2 {[%clk 0:03:01]}  a6 {[%clk 0:02:59]} 8. Qd2 {[%clk 0:03:01]}  Rb8 {[%clk 0:02:58]} 9. h4 {[%clk 0:03:01]}  h5 {[%clk 0:02:58]} 10. Nd5 {[%clk 0:03:02]}  e6 {[%clk 0:02:57]} 11. Nxf6+ {[%clk 0:03:01]}  Bxf6 {[%clk 0:02:57]} 12. Bg5 {[%clk 0:03:02]}  b5 {[%clk 0:02:53]} 13. cxb5 {[%clk 0:03:00]}  Rxb5 {[%clk 0:02:50]} 14. Nc3 {[%clk 0:02:47]}  Rxg5 {[%clk 0:02:50]} 15. hxg5 {[%clk 0:02:41]}  Bxg5 {[%clk 0:02:48]} 16. f4 {[%clk 0:02:17]}  Bh6 {[%clk 0:02:47]} 17. d5 {[%clk 0:02:08]}  Ne5 {[%clk 0:02:39]} 18. O-O-O {[%clk 0:01:50]}  exd5 {[%clk 0:02:34]} 19. Nxd5 {[%clk 0:01:34]}  Be6 {[%clk 0:02:32]} 20. Kb1 {[%clk 0:01:32]}  Bxd5 {[%clk 0:02:30]} 21. exd5 {[%clk 0:01:31]}  a5 {[%clk 0:02:25]} 22. g3 {[%clk 0:01:18]}  a4 {[%clk 0:02:23]} 23. Bb5 {[%clk 0:01:09]}  a3 {[%clk 0:02:22]} 24. bxa3 {[%clk 0:01:07]}  Qb8 {[%clk 0:02:08]} 25. Qb4 {[%clk 0:01:04]}  Ng4 {[%clk 0:02:04]} 26. Rhe1 {[%clk 0:00:59]}  Bg7 {[%clk 0:01:59]} 27. Be2 {[%clk 0:00:51]}  Qa7 {[%clk 0:01:56]} 28. Bxg4 {[%clk 0:00:51]}  Rb8 {[%clk 0:01:54]} 29. Bd7 {[%clk 0:00:30]}  Rxb4+ {[%clk 0:01:53]} 30. axb4 {[%clk 0:00:31]}  Qa3 {[%clk 0:01:53]} 31. Re2 {[%clk 0:00:26]}  Qxb4+ {[%clk 0:01:51]} 32. Kc2 {[%clk 0:00:27]}  Qc3+ {[%clk 0:01:45]} 33. Kb1 {[%clk 0:00:27]}  Qa1+ {[%clk 0:01:43]} 34. Kc2 {[%clk 0:00:27]}  Qxa2+ {[%clk 0:01:43]} 35. Kd3 {[%clk 0:00:28]}  Qb3+ {[%clk 0:01:36]} 36. Kd2 {[%clk 0:00:25]}  Qc3# {[%clk 0:01:36]} 0-1


[Site "https://www.chess.com"]

[Event "Titled Tuesday Blitz August 15 Late 2023"]
[White "Andrews, Todd"]
[Black "Pinheiro, Iung Alicio de O."]
[WhiteFideId "2012456"]
[BlackFideId "2104350"]
[WhiteElo "2408"]
[BlackElo "2588"]
[Result "0-1"]
[Round "7"]
[TimeControl "180+1"]
[Date "2023.08.15"]
[WhiteClock "0:00:03"]
[BlackClock "0:00:23"]
[Board "91"]

1. e4 {[%clk 0:03:00]}  c5 {[%clk 0:02:58]} 2. Nf3 {[%clk 0:03:01]}  Nc6 {[%clk 0:02:57]} 3. d4 {[%clk 0:03:01]}  cxd4 {[%clk 0:02:57]} 4. Nxd4 {[%clk 0:03:02]}  e5 {[%clk 0:02:57]} 5. Nb5 {[%clk 0:03:01]}  d6 {[%clk 0:02:57]} 6. c4 {[%clk 0:02:58]}  Be7 {[%clk 0:02:54]} 7. N1c3 {[%clk 0:02:57]}  a6 {[%clk 0:02:54]} 8. Na3 {[%clk 0:02:57]}  f5 {[%clk 0:02:55]} 9. Be2 {[%clk 0:02:51]}  f4 {[%clk 0:02:55]} 10. Bg4 {[%clk 0:02:51]}  Nf6 {[%clk 0:02:53]} 11. Bxc8 {[%clk 0:02:51]}  Qxc8 {[%clk 0:02:51]} 12. Nc2 {[%clk 0:02:49]}  O-O {[%clk 0:02:50]} 13. O-O {[%clk 0:02:45]}  Qe6 {[%clk 0:02:30]} 14. b3 {[%clk 0:02:36]}  Bd8 {[%clk 0:02:10]} 15. Ba3 {[%clk 0:02:35]}  Ba5 {[%clk 0:02:05]} 16. b4 {[%clk 0:02:11]}  Bb6 {[%clk 0:01:53]} 17. Nd5 {[%clk 0:02:09]}  Bd8 {[%clk 0:01:38]} 18. f3 {[%clk 0:02:08]}  Ne7 {[%clk 0:01:37]} 19. Qd3 {[%clk 0:01:53]}  Nexd5 {[%clk 0:01:27]} 20. exd5 {[%clk 0:01:52]}  Qd7 {[%clk 0:01:23]} 21. Rad1 {[%clk 0:01:47]}  a5 {[%clk 0:01:16]} 22. c5 {[%clk 0:01:43]}  axb4 {[%clk 0:01:14]} 23. Bxb4 {[%clk 0:01:43]}  Rxa2 {[%clk 0:01:11]} 24. c6 {[%clk 0:01:36]}  bxc6 {[%clk 0:01:06]} 25. dxc6 {[%clk 0:01:36]}  Qa7+ {[%clk 0:01:05]} 26. Kh1 {[%clk 0:01:37]}  Bc7 {[%clk 0:01:05]} 27. Qb3+ {[%clk 0:01:27]}  Kh8 {[%clk 0:01:04]} 28. Bxd6 {[%clk 0:01:25]}  Bxd6 {[%clk 0:00:55]} 29. Rxd6 {[%clk 0:01:24]}  Ra6 {[%clk 0:00:54]} 30. Rfd1 {[%clk 0:01:17]}  Qe7 {[%clk 0:00:50]} 31. Nb4 {[%clk 0:01:11]}  Rb6 {[%clk 0:00:48]} 32. Qc4 {[%clk 0:01:01]}  h6 {[%clk 0:00:40]} 33. h3 {[%clk 0:00:40]}  Kh7 {[%clk 0:00:35]} 34. Nc2 {[%clk 0:00:33]}  e4 {[%clk 0:00:30]} 35. Re6 {[%clk 0:00:30]}  Qc7 {[%clk 0:00:30]} 36. fxe4 {[%clk 0:00:29]}  Nh5 {[%clk 0:00:29]} 37. Rd7 {[%clk 0:00:25]}  Rb1+ {[%clk 0:00:28]} 38. Kh2 {[%clk 0:00:12]}  Ng3 {[%clk 0:00:29]} 39. Rxh6+ {[%clk 0:00:09]}  Kxh6 {[%clk 0:00:26]} 40. Qe6+ {[%clk 0:00:09]}  Kh7 {[%clk 0:00:26]} 41. Ne1 {[%clk 0:00:06]}  Rxe1 {[%clk 0:00:24]} 42. Rxc7 {[%clk 0:00:03]}  Rh1# {[%clk 0:00:23]} 0-1


[Site "https://www.chess.com"]

[Event "Titled Tuesday Blitz August 15 Late 2023"]
[White "Santos Flores, Alberto"]
[Black "Fernandez Garcia, Gumersindo"]
[WhiteFideId "3601234"]
[BlackFideId "24516740"]
[WhiteElo "2516"]
[BlackElo "2397"]
[Result "0-1"]
[Round "7"]
[TimeControl "180+1"]
[Date "2023.08.15"]
[WhiteClock "0:00:00"]
[BlackClock "0:00:14"]
[Board "94"]

1. e4 {[%clk 0:03:00]}  c5 {[%clk 0:02:54]} 2. Nf3 {[%clk 0:03:00]}  e6 {[%clk 0:02:53]} 3. g3 {[%clk 0:03:00]}  g6 {[%clk 0:02:52]} 4. d4 {[%clk 0:02:59]}  Bg7 {[%clk 0:02:43]} 5. dxc5 {[%clk 0:02:55]}  Qa5+ {[%clk 0:02:42]} 6. c3 {[%clk 0:02:44]}  Qxc5 {[%clk 0:02:40]} 7. Na3 {[%clk 0:02:45]}  Nf6 {[%clk 0:02:21]} 8. Be3 {[%clk 0:02:34]}  Qc6 {[%clk 0:02:19]} 9. Bg2 {[%clk 0:02:29]}  O-O {[%clk 0:02:17]} 10. e5 {[%clk 0:02:26]}  Ng4 {[%clk 0:02:12]} 11. Bf4 {[%clk 0:02:21]}  Qc5 {[%clk 0:02:01]} 12. Qe2 {[%clk 0:01:32]}  Nc6 {[%clk 0:02:00]} 13. O-O {[%clk 0:01:25]}  Ngxe5 {[%clk 0:01:54]} 14. Nxe5 {[%clk 0:01:25]}  Nxe5 {[%clk 0:01:46]} 15. Nb5 {[%clk 0:01:16]}  a6 {[%clk 0:01:35]} 16. Nd4 {[%clk 0:01:07]}  Nc6 {[%clk 0:01:32]} 17. Nb3 {[%clk 0:01:01]}  Qb5 {[%clk 0:01:29]} 18. Qxb5 {[%clk 0:00:58]}  axb5 {[%clk 0:01:28]} 19. Bd6 {[%clk 0:00:59]}  Re8 {[%clk 0:01:27]} 20. Rfd1 {[%clk 0:00:55]}  b4 {[%clk 0:01:25]} 21. Bxc6 {[%clk 0:00:43]}  bxc6 {[%clk 0:01:20]} 22. Bxb4 {[%clk 0:00:43]}  d5 {[%clk 0:01:20]} 23. Bc5 {[%clk 0:00:41]}  Ba6 {[%clk 0:01:18]} 24. f4 {[%clk 0:00:39]}  Bc4 {[%clk 0:01:16]} 25. Bd4 {[%clk 0:00:38]}  Bxb3 {[%clk 0:01:11]} 26. axb3 {[%clk 0:00:38]}  Rxa1 {[%clk 0:01:00]} 27. Rxa1 {[%clk 0:00:37]}  Bxd4+ {[%clk 0:01:00]} 28. cxd4 {[%clk 0:00:38]}  Rb8 {[%clk 0:00:59]} 29. Ra3 {[%clk 0:00:09]}  Rb4 {[%clk 0:00:58]} 30. Kf2 {[%clk 0:00:09]}  Rxd4 {[%clk 0:00:57]} 31. Ke3 {[%clk 0:00:10]}  Rb4 {[%clk 0:00:56]} 32. Kd2 {[%clk 0:00:09]}  c5 {[%clk 0:00:55]} 33. Kc3 {[%clk 0:00:10]}  Rb5 {[%clk 0:00:52]} 34. Ra8+ {[%clk 0:00:08]}  Kg7 {[%clk 0:00:52]} 35. Rc8 {[%clk 0:00:07]}  h5 {[%clk 0:00:52]} 36. h3 {[%clk 0:00:06]}  Kf6 {[%clk 0:00:53]} 37. g4 {[%clk 0:00:07]}  hxg4 {[%clk 0:00:53]} 38. hxg4 {[%clk 0:00:08]}  g5 {[%clk 0:00:50]} 39. fxg5+ {[%clk 0:00:06]}  Kxg5 {[%clk 0:00:51]} 40. Rc7 {[%clk 0:00:06]}  Kg6 {[%clk 0:00:46]} 41. Rc8 {[%clk 0:00:06]}  f5 {[%clk 0:00:39]} 42. gxf5+ {[%clk 0:00:06]}  Kxf5 {[%clk 0:00:39]} 43. Rc7 {[%clk 0:00:05]}  Ke4 {[%clk 0:00:38]} 44. Rc8 {[%clk 0:00:05]}  e5 {[%clk 0:00:30]} 45. Rc7 {[%clk 0:00:04]}  Ke3 {[%clk 0:00:30]} 46. Rh7 {[%clk 0:00:03]}  d4+ {[%clk 0:00:25]} 47. Kc4 {[%clk 0:00:03]}  Rb4+ {[%clk 0:00:26]} 48. Kxc5 {[%clk 0:00:03]}  Rxb3 {[%clk 0:00:26]} 49. Re7 {[%clk 0:00:02]}  e4 {[%clk 0:00:20]} 50. Kd5 {[%clk 0:00:02]}  Rb5+ {[%clk 0:00:20]} 51. Kc4 {[%clk 0:00:03]}  Rxb2 {[%clk 0:00:20]} 52. Kd5 {[%clk 0:00:02]}  Rb5+ {[%clk 0:00:19]} 53. Kc4 {[%clk 0:00:02]}  Rh5 {[%clk 0:00:20]} 54. Rd7 {[%clk 0:00:02]}  d3 {[%clk 0:00:20]} 55. Rg7 {[%clk 0:00:03]}  d2 {[%clk 0:00:15]} 56. Rd7 {[%clk 0:00:00]}  Ke2 {[%clk 0:00:14]} 0-1


[Site "https://www.chess.com"]

[Event "Titled Tuesday Blitz August 15 Late 2023"]
[White "Jovic, Stanoje"]
[Black "Bogaudinov, Rushan"]
[WhiteFideId "905020"]
[BlackFideId "4129288"]
[WhiteElo "2481"]
[BlackElo "2349"]
[Result "1-0"]
[Round "7"]
[TimeControl "180+1"]
[Date "2023.08.15"]
[WhiteClock "0:00:37"]
[BlackClock "0:00:35"]
[Board "96"]

1. c4 {[%clk 0:03:00]}  Nf6 {[%clk 0:02:47]} 2. g3 {[%clk 0:03:01]}  h5 {[%clk 0:02:46]} 3. h3 {[%clk 0:02:59]}  d5 {[%clk 0:02:44]} 4. cxd5 {[%clk 0:02:58]}  Qxd5 {[%clk 0:02:44]} 5. Nf3 {[%clk 0:02:58]}  e5 {[%clk 0:02:41]} 6. Nc3 {[%clk 0:02:55]}  Qc6 {[%clk 0:02:38]} 7. e4 {[%clk 0:02:45]}  a6 {[%clk 0:02:37]} 8. Nxe5 {[%clk 0:02:44]}  Qe6 {[%clk 0:02:35]} 9. d4 {[%clk 0:02:43]}  Bb4 {[%clk 0:02:26]} 10. Bg2 {[%clk 0:02:39]}  O-O {[%clk 0:02:21]} 11. O-O {[%clk 0:02:38]}  c5 {[%clk 0:02:21]} 12. f4 {[%clk 0:02:29]}  Rd8 {[%clk 0:02:17]} 13. d5 {[%clk 0:02:27]}  Qe8 {[%clk 0:02:13]} 14. Be3 {[%clk 0:02:24]}  Nc6 {[%clk 0:02:07]} 15. a3 {[%clk 0:02:09]}  Bxc3 {[%clk 0:02:04]} 16. bxc3 {[%clk 0:02:08]}  Nxe5 {[%clk 0:02:04]} 17. fxe5 {[%clk 0:02:08]}  Qxe5 {[%clk 0:02:04]} 18. Bf4 {[%clk 0:02:06]}  Qe8 {[%clk 0:02:00]} 19. e5 {[%clk 0:02:04]}  Nxd5 {[%clk 0:01:48]} 20. Bxd5 {[%clk 0:02:01]}  Bxh3 {[%clk 0:01:48]} 21. Rf2 {[%clk 0:01:57]}  Bg4 {[%clk 0:01:45]} 22. Qb3 {[%clk 0:01:51]}  Qe7 {[%clk 0:01:36]} 23. Qxb7 {[%clk 0:01:48]}  Qxb7 {[%clk 0:01:34]} 24. Bxb7 {[%clk 0:01:49]}  Ra7 {[%clk 0:01:32]} 25. Bf3 {[%clk 0:01:47]}  Rd3 {[%clk 0:01:28]} 26. Bxg4 {[%clk 0:01:41]}  hxg4 {[%clk 0:01:29]} 27. Rc1 {[%clk 0:01:36]}  Rb7 {[%clk 0:01:24]} 28. Rd2 {[%clk 0:01:35]}  Rf3 {[%clk 0:01:22]} 29. Rf2 {[%clk 0:01:28]}  Rd3 {[%clk 0:01:21]} 30. Kg2 {[%clk 0:01:18]}  Rb3 {[%clk 0:01:20]} 31. c4 {[%clk 0:01:12]}  Rxa3 {[%clk 0:01:15]} 32. Rb1 {[%clk 0:01:12]}  g5 {[%clk 0:01:07]} 33. Bxg5 {[%clk 0:00:59]}  Rxg3+ {[%clk 0:01:07]} 34. Kf1 {[%clk 0:00:51]}  Rgf3 {[%clk 0:01:04]} 35. Rxf3 {[%clk 0:00:44]}  Rxf3+ {[%clk 0:01:02]} 36. Kg2 {[%clk 0:00:44]}  Rc3 {[%clk 0:00:57]} 37. Bf6 {[%clk 0:00:40]}  Rxc4 {[%clk 0:00:52]} 38. Rh1 {[%clk 0:00:37]}  Rc2+ {[%clk 0:00:50]} 39. Kg3 {[%clk 0:00:37]}  Rc3+ {[%clk 0:00:35]} 40. Kxg4 {[%clk 0:00:37]} 1-0


[Site "https://www.chess.com"]

[Event "Titled Tuesday Blitz August 15 Late 2023"]
[White "Baches Garcia, Guillermo"]
[Black "Cheer_Down"]
[WhiteFideId "2209764"]
[WhiteElo "2462"]
[BlackElo "2325"]
[Result "1-0"]
[Round "7"]
[TimeControl "180+1"]
[Date "2023.08.15"]
[WhiteClock "0:00:07"]
[BlackClock "0:00:03"]
[Board "99"]

1. e4 {[%clk 0:03:00]}  c5 {[%clk 0:02:58]} 2. Nf3 {[%clk 0:03:00]}  d6 {[%clk 0:02:57]} 3. d4 {[%clk 0:03:01]}  cxd4 {[%clk 0:02:58]} 4. Nxd4 {[%clk 0:03:01]}  Nf6 {[%clk 0:02:58]} 5. Nc3 {[%clk 0:03:02]}  a6 {[%clk 0:02:58]} 6. Be3 {[%clk 0:03:02]}  e5 {[%clk 0:02:58]} 7. Nb3 {[%clk 0:03:02]}  Be6 {[%clk 0:02:56]} 8. f3 {[%clk 0:03:03]}  h5 {[%clk 0:02:50]} 9. Nd5 {[%clk 0:03:01]}  Bxd5 {[%clk 0:02:45]} 10. exd5 {[%clk 0:03:01]}  Nbd7 {[%clk 0:02:45]} 11. Qd2 {[%clk 0:03:01]}  g6 {[%clk 0:02:45]} 12. O-O-O {[%clk 0:03:00]}  Nb6 {[%clk 0:02:33]} 13. Bg5 {[%clk 0:02:40]}  Be7 {[%clk 0:02:13]} 14. Kb1 {[%clk 0:02:30]}  Rc8 {[%clk 0:01:47]} 15. Qa5 {[%clk 0:02:14]}  Nbxd5 {[%clk 0:01:36]} 16. Qxd8+ {[%clk 0:01:52]}  Rxd8 {[%clk 0:01:30]} 17. c4 {[%clk 0:01:41]}  Nb4 {[%clk 0:01:25]} 18. a3 {[%clk 0:01:33]}  Nc6 {[%clk 0:01:24]} 19. Bd3 {[%clk 0:01:29]}  Nd7 {[%clk 0:01:15]} 20. Be3 {[%clk 0:01:23]}  f5 {[%clk 0:01:12]} 21. Rhe1 {[%clk 0:01:18]}  Kf7 {[%clk 0:01:09]} 22. h3 {[%clk 0:01:12]}  h4 {[%clk 0:01:05]} 23. f4 {[%clk 0:01:12]}  e4 {[%clk 0:01:04]} 24. Bc2 {[%clk 0:01:03]}  Nc5 {[%clk 0:00:57]} 25. Nc1 {[%clk 0:00:55]}  a5 {[%clk 0:00:53]} 26. Ne2 {[%clk 0:00:52]}  Rhg8 {[%clk 0:00:32]} 27. Nc3 {[%clk 0:00:51]}  g5 {[%clk 0:00:30]} 28. Rd2 {[%clk 0:00:50]}  gxf4 {[%clk 0:00:27]} 29. Bxf4 {[%clk 0:00:49]}  Ne5 {[%clk 0:00:28]} 30. b3 {[%clk 0:00:41]}  Ke6 {[%clk 0:00:26]} 31. Nd5 {[%clk 0:00:36]}  Ncd3 {[%clk 0:00:23]} 32. Bxd3 {[%clk 0:00:33]}  exd3 {[%clk 0:00:23]} 33. Rxd3 {[%clk 0:00:28]}  Rxg2 {[%clk 0:00:22]} 34. Rde3 {[%clk 0:00:26]}  Bf6 {[%clk 0:00:18]} 35. Nc7+ {[%clk 0:00:22]}  Kf7 {[%clk 0:00:17]} 36. Nd5 {[%clk 0:00:20]}  Rb8 {[%clk 0:00:12]} 37. c5 {[%clk 0:00:18]}  Bg7 {[%clk 0:00:04]} 38. cxd6 {[%clk 0:00:17]}  Ng6 {[%clk 0:00:04]} 39. R3e2 {[%clk 0:00:13]}  Rxe2 {[%clk 0:00:03]} 40. Rxe2 {[%clk 0:00:13]}  Nxf4 {[%clk 0:00:04]} 41. Nxf4 {[%clk 0:00:13]}  Rd8 {[%clk 0:00:04]} 42. Re7+ {[%clk 0:00:11]}  Kf6 {[%clk 0:00:02]} 43. Nd5+ {[%clk 0:00:09]}  Kg6 {[%clk 0:00:02]} 44. d7 {[%clk 0:00:09]}  Bf6 {[%clk 0:00:02]} 45. Re6 {[%clk 0:00:09]}  Kf7 {[%clk 0:00:01]} 46. Rxf6+ {[%clk 0:00:09]}  Kg7 {[%clk 0:00:02]} 47. Rd6 {[%clk 0:00:09]}  Kf7 {[%clk 0:00:02]} 48. Nf4 {[%clk 0:00:09]}  Ke7 {[%clk 0:00:01]} 49. Rd2 {[%clk 0:00:09]}  Rxd7 {[%clk 0:00:02]} 50. Rxd7+ {[%clk 0:00:09]}  Kxd7 {[%clk 0:00:03]} 51. Ng6 {[%clk 0:00:09]}  Ke6 {[%clk 0:00:02]} 52. Nxh4 {[%clk 0:00:10]}  Kd5 {[%clk 0:00:03]} 53. Kc2 {[%clk 0:00:10]}  Ke4 {[%clk 0:00:04]} 54. Ng6 {[%clk 0:00:10]}  f4 {[%clk 0:00:04]} 55. Nh4 {[%clk 0:00:08]}  f3 {[%clk 0:00:05]} 56. Nxf3 {[%clk 0:00:08]}  Ke3 {[%clk 0:00:03]} 57. Nd2 {[%clk 0:00:07]} 1-0


[Site "https://www.chess.com"]

[Event "Titled Tuesday Blitz August 15 Late 2023"]
[White "Barwinska, Ewa"]
[Black "Radivojevic, Ivan"]
[WhiteFideId "21833761"]
[BlackFideId "928461"]
[WhiteElo "2294"]
[BlackElo "2442"]
[Result "1-0"]
[Round "7"]
[TimeControl "180+1"]
[Date "2023.08.15"]
[WhiteClock "0:00:09"]
[BlackClock "0:00:16"]
[Board "101"]

1. e4 {[%clk 0:03:00]}  c6 {[%clk 0:03:00]} 2. d4 {[%clk 0:02:59]}  d5 {[%clk 0:03:00]} 3. Nc3 {[%clk 0:02:59]}  dxe4 {[%clk 0:03:00]} 4. Nxe4 {[%clk 0:03:00]}  Nf6 {[%clk 0:03:00]} 5. Nxf6+ {[%clk 0:02:59]}  gxf6 {[%clk 0:03:01]} 6. c3 {[%clk 0:02:58]}  Bf5 {[%clk 0:03:01]} 7. Bd3 {[%clk 0:02:58]}  Bg6 {[%clk 0:03:00]} 8. Ne2 {[%clk 0:02:54]}  e6 {[%clk 0:03:00]} 9. Bf4 {[%clk 0:02:48]}  Bd6 {[%clk 0:03:01]} 10. Qd2 {[%clk 0:02:45]}  Qc7 {[%clk 0:03:01]} 11. g3 {[%clk 0:02:44]}  Nd7 {[%clk 0:03:00]} 12. O-O-O {[%clk 0:02:43]}  O-O-O {[%clk 0:03:01]} 13. h4 {[%clk 0:02:42]}  e5 {[%clk 0:02:35]} 14. Be3 {[%clk 0:02:28]}  Nb6 {[%clk 0:02:30]} 15. h5 {[%clk 0:02:18]}  Bxd3 {[%clk 0:02:27]} 16. Qxd3 {[%clk 0:02:19]}  Nd5 {[%clk 0:02:16]} 17. c4 {[%clk 0:01:58]}  Nxe3 {[%clk 0:01:33]} 18. fxe3 {[%clk 0:01:57]}  exd4 {[%clk 0:01:30]} 19. exd4 {[%clk 0:01:58]}  Rdg8 {[%clk 0:01:24]} 20. Qf5+ {[%clk 0:01:51]}  Kb8 {[%clk 0:01:23]} 21. Qxf6 {[%clk 0:01:49]}  Bxg3 {[%clk 0:01:18]} 22. Nxg3 {[%clk 0:01:45]}  Qxg3 {[%clk 0:01:19]} 23. Qxf7 {[%clk 0:01:38]}  Rf8 {[%clk 0:01:14]} 24. Qe6 {[%clk 0:01:29]}  Re8 {[%clk 0:01:14]} 25. Qh3 {[%clk 0:01:18]}  Qf4+ {[%clk 0:01:14]} 26. Kb1 {[%clk 0:01:17]}  Re2 {[%clk 0:01:12]} 27. Rhf1 {[%clk 0:00:51]}  Qe4+ {[%clk 0:01:02]} 28. Qd3 {[%clk 0:00:51]}  Qg2 {[%clk 0:01:02]} 29. Qb3 {[%clk 0:00:42]}  Rc8 {[%clk 0:00:48]} 30. Rf7 {[%clk 0:00:35]}  Rc7 {[%clk 0:00:47]} 31. Rf8+ {[%clk 0:00:21]}  Rc8 {[%clk 0:00:48]} 32. Rf7 {[%clk 0:00:22]}  Rc7 {[%clk 0:00:48]} 33. Rxc7 {[%clk 0:00:17]}  Kxc7 {[%clk 0:00:48]} 34. d5 {[%clk 0:00:15]}  Qe4+ {[%clk 0:00:39]} 35. Ka1 {[%clk 0:00:15]}  c5 {[%clk 0:00:16]} 36. Qg3+ {[%clk 0:00:11]}  Kb6 {[%clk 0:00:15]} 37. Qd6+ {[%clk 0:00:09]}  Ka5 {[%clk 0:00:15]} 38. Qxc5+ {[%clk 0:00:10]}  Ka4 {[%clk 0:00:16]} 39. Qa3# {[%clk 0:00:09]} 1-0


[Site "https://www.chess.com"]